fUSD/lending_fUSD_20260217
["ID","MTS","AMOUNT","RATE_DAILY","PERIOD"]
[405851054,1771361438793,-172.0,6.901e-05,2]
[405851056,1771361438804,-1184.93,7e-05,2]
[405851059,1771361438814,-14037.81,7e-05,2]
[405851061,1771361438824,-9999.99,7e-05,2]
[405851063,1771361438834,-515.68,7e-05,2]
[405851064,1771361438844,-179478.12,7e-05,2]
[405851066,1771361438854,-761.78,7e-05,2]
[405851069,1771361438865,-9999.99,7e-05,2]
[405851070,1771361438875,-311.5,7e-05,2]
[405851073,1771361438885,-150.99,7e-05,2]
[405851075,1771361438895,-4999.99,7e-05,2]
[405851076,1771361438904,-14638.92,7e-05,2]
[405851078,1771361438914,-999.99,7e-05,2]
[405851080,1771361438925,-1542.1,7e-05,2]
[405851083,1771361438935,-49999.99,7e-05,2]
[405851085,1771361438945,-7136.18,7e-05,2]
[405851086,1771361438955,-9999.99,7e-05,2]
[405851120,1771361439286,-150.99,7e-05,2]
[405851122,1771361439297,-9999.99,7e-05,2]
[405851124,1771361439308,-2106.28,7e-05,2]
[405851126,1771361439318,-29124.47,7e-05,2]
[405851128,1771361439328,-5914.98,7e-05,2]
[405851130,1771361439338,-81423.96,7e-05,2]
[405851132,1771361439349,-2984.7,7e-05,2]
[405851134,1771361439359,-57000.0,7e-05,2]
[405851137,1771361439370,-1852.42,7.042e-05,2]
[405851138,1771361439382,-9999.99,7.042e-05,2]
[405851140,1771361439393,-299.99,7.042e-05,2]
[405851142,1771361439403,-3706.48,7.042e-05,2]
[405851145,1771361439413,-9999.99,7.042e-05,2]
[405851147,1771361439423,-1473.32,7.042e-05,2]
[405851149,1771361439433,-499.99,7.042e-05,2]
[405851150,1771361439443,-230.24,7.2e-05,2]
[405851153,1771361439452,-250.0,7.259e-05,2]
[405851154,1771361439462,-420.0,7.259e-05,2]
[405851156,1771361439471,-1680.0,7.259e-05,2]
[405851159,1771361439483,-193.0,7.259e-05,2]
[405851160,1771361439492,-596.42,7.3e-05,2]
[405851162,1771361439502,-596.42,7.3e-05,2]
[405851165,1771361439512,-173.9,7.3e-05,2]
[405851166,1771361439523,-763.76,7.341e-05,2]
[405851168,1771361439532,-250.0,7.368e-05,2]
[405851170,1771361439542,-255.0,7.368e-05,2]
[405851173,1771361439552,-236.67985413,7.37e-05,12]
[405851174,1771361439563,-300.0,7.37e-05,12]
[405851176,1771361439572,-300.0,7.37e-05,12]
[405851178,1771361439582,-300.0,7.37e-05,12]
[405851180,1771361439591,-218.0,7.37e-05,12]
[405851182,1771361439601,-166.66,7.447e-05,2]
[405851184,1771361439612,-166.66,7.693e-05,2]
[405851186,1771361439624,-4259.95,7.872e-05,2]
[405851188,1771361439635,-166.66,7.939e-05,2]
[405851190,1771361439645,-37943.359931,7.945e-05,2]
[405851192,1771361439656,-587.0,7.985e-05,2]
[405851194,1771361439669,-2351.0,7.985e-05,2]
[405851196,1771361439680,-500.0,8e-05,2]
[405851198,1771361439691,-393.01462109,8e-05,2]
[405851200,1771361439703,-1600.0,8.038e-05,2]
[405851202,1771361439713,-1500.0,8.057e-05,2]
[405851204,1771361439724,-433.0,8.105e-05,2]
[405851206,1771361439736,-1285.1,8.178e-05,2]
[405851208,1771361439747,-166.66,8.185e-05,2]
[405851210,1771361439758,-500.0,8.219e-05,2]
[405851212,1771361439769,-334.17178045,8.219e-05,2]
[405851214,1771361439779,-500.0,8.219e-05,2]
[405851216,1771361439789,-500.0,8.219e-05,2]
[405851218,1771361439800,-500.0,8.219e-05,2]
[405851220,1771361439811,-500.0,8.219e-05,2]
[405851222,1771361439822,-500.0,8.219e-05,2]
[405851224,1771361439832,-500.0,8.219e-05,2]
[405851226,1771361439843,-238.628183,8.219e-05,2]
[405851228,1771361439854,-500.0,8.219e-05,2]
[405851230,1771361439865,-4709.85,8.219e-05,2]
[405851232,1771361439875,-298.285229,8.402e-05,2]
[405851234,1771361439886,-166.66,8.431e-05,2]
[405851236,1771361439895,-355.76,8.444e-05,2]
[405851238,1771361439906,-468.76986629,8.448e-05,2]
[405851240,1771361439916,-215.37,8.472e-05,2]
[405851242,1771361439926,-500.0,8.493e-05,2]
[405851244,1771361439938,-600.0,8.6e-05,2]
[405851246,1771361439948,-166.66,8.676e-05,2]
[405851248,1771361439959,-250.0,8.72e-05,2]
[405851250,1771361439970,-500.0,8.767e-05,2]
[405851252,1771361439981,-3292.0,8.783e-05,2]
[405851254,1771361439991,-823.0,8.783e-05,2]
[405851256,1771361440001,-736.0,8.915e-05,2]
[405851258,1771361440011,-500.0,9.041e-05,2]
[405851260,1771361440021,-1600.0,9.043e-05,2]
[405851262,1771361440030,-500.0,9.315e-05,2]
[405851264,1771361440039,-500.0,9.589e-05,2]
[405851266,1771361440049,-1152.0,9.662e-05,2]
[405851268,1771361440059,-4609.0,9.662e-05,2]
[405851270,1771361440069,-9999.99,9.67e-05,2]
[405851272,1771361440079,-1401.0,9.67e-05,2]
[405851274,1771361440089,-14381.39,9.67e-05,2]
[405851276,1771361440099,-1252.0,9.806e-05,2]
[405851278,1771361440110,-237.28842339,9.862e-05,2]
[405851280,1771361440120,-500.0,9.862e-05,2]
[405851281,1771361440130,-214.0121963,9.862e-05,2]
[405851282,1771361440141,-500.0,9.862e-05,2]
[405851283,1771361440151,-500.0,9.862e-05,2]
[405851284,1771361440161,-500.0,9.862e-05,2]
[405851285,1771361440172,-150.0,9.862e-05,2]
[405851286,1771361440182,-500.0,9.862e-05,2]
[405851287,1771361440192,-500.0,9.862e-05,2]
[405851288,1771361440203,-500.0,9.862e-05,2]
[405851289,1771361440213,-500.0,9.862e-05,2]
[405851290,1771361440224,-150.0,9.862e-05,2]
[405851292,1771361440235,-500.0,9.862e-05,2]
[405851294,1771361440246,-150.0,9.862e-05,2]
[405851295,1771361440256,-150.0,9.862e-05,2]
[405851296,1771361440267,-500.0,9.862e-05,2]
[405851297,1771361440277,-500.0,9.862e-05,2]
[405851298,1771361440287,-500.0,9.862e-05,2]
[405851299,1771361440298,-500.0,9.862e-05,2]
[405851300,1771361440308,-500.0,9.862e-05,2]
[405851301,1771361440318,-150.0,9.862e-05,2]
[405851302,1771361440328,-150.0,9.862e-05,2]
[405851303,1771361440339,-500.0,9.862e-05,2]
[405851304,1771361440349,-500.0,9.862e-05,2]
[405851305,1771361440359,-150.31509327,9.862e-05,2]
[405851306,1771361440369,-500.0,9.862e-05,2]
[405851307,1771361440380,-500.0,9.862e-05,2]
[405851308,1771361440390,-150.0,9.862e-05,2]
[405851309,1771361440399,-500.0,9.862e-05,2]
[405851310,1771361440409,-500.0,9.862e-05,2]
[405851311,1771361440421,-150.0,9.862e-05,2]
[405851312,1771361440430,-500.0,9.862e-05,2]
[405851313,1771361440440,-500.0,9.862e-05,2]
[405851314,1771361440450,-150.0,9.862e-05,2]
[405851315,1771361440460,-500.0,9.862e-05,2]
[405851316,1771361440470,-500.0,9.862e-05,2]
[405851317,1771361440481,-500.0,9.863e-05,2]
[405851318,1771361440490,-500.0,9.917e-05,2]
[405851319,1771361440501,-500.0,9.917e-05,2]
[405851320,1771361440511,-500.0,9.917e-05,2]
[405851321,1771361440521,-500.0,9.917e-05,2]
[405851322,1771361440531,-150.0,9.917e-05,2]
[405851323,1771361440541,-500.0,9.917e-05,2]
[405851324,1771361440552,-500.0,9.917e-05,2]
[405851325,1771361440562,-502.16866536,9.917e-05,2]
[405851326,1771361440573,-500.0,9.917e-05,2]
[405851327,1771361440583,-150.0,9.917e-05,2]
[405851328,1771361440593,-500.0,9.917e-05,2]
[405851329,1771361440603,-150.0,9.917e-05,2]
[405851330,1771361440614,-150.07216309,9.917e-05,2]
[405851331,1771361440624,-500.0,9.917e-05,2]
[405851332,1771361440635,-500.0,9.917e-05,2]
[405851333,1771361440646,-500.0,9.917e-05,2]
[405851334,1771361440657,-500.0,9.917e-05,2]
[405851335,1771361440670,-500.0,9.917e-05,2]
[405851336,1771361440680,-500.0,9.917e-05,2]
[405851337,1771361440690,-500.0,9.917e-05,2]
[405851338,1771361440700,-500.0,9.917e-05,2]
[405851339,1771361440711,-500.0,9.917e-05,2]
[405851340,1771361440722,-150.0,9.917e-05,2]
[405851341,1771361440731,-500.0,9.917e-05,2]
[405851342,1771361440743,-500.0,9.917e-05,2]
[405851343,1771361440754,-151.2254874,9.917e-05,2]
[405851344,1771361440764,-500.0,9.917e-05,2]
[405851345,1771361440774,-500.0,9.917e-05,2]
[405851346,1771361440785,-150.0,9.917e-05,2]
[405851347,1771361440795,-500.0,9.917e-05,2]
[405851348,1771361440805,-500.0,9.917e-05,2]
[405851349,1771361440815,-500.0,9.972e-05,2]
[405851350,1771361440826,-500.0,9.972e-05,2]
[405851351,1771361440837,-537.36614029,9.972e-05,2]
[405851352,1771361440848,-500.0,9.972e-05,2]
[405851353,1771361440858,-200.0,9.972e-05,2]
[405851354,1771361440868,-500.0,9.972e-05,2]
[405851355,1771361440878,-500.0,9.972e-05,2]
[405851356,1771361440888,-500.0,9.972e-05,2]
[405851357,1771361440898,-150.0,9.972e-05,2]
[405851358,1771361440909,-500.0,9.972e-05,2]
[405851359,1771361440919,-150.0,9.972e-05,2]
[405851360,1771361440929,-500.0,9.972e-05,2]
[405851361,1771361440939,-500.0,9.972e-05,2]
[405851362,1771361440949,-537.18600864,9.972e-05,2]
[405851363,1771361440959,-500.0,9.972e-05,2]
[405851364,1771361440970,-500.0,9.972e-05,2]
[405851365,1771361440981,-500.0,9.972e-05,2]
[405851366,1771361440991,-500.0,9.972e-05,2]
[405851367,1771361441003,-500.0,9.972e-05,2]
[405851368,1771361441013,-616.5683879,9.972e-05,2]
[405851369,1771361441024,-201.09695119,9.972e-05,2]
[405851370,1771361441034,-500.0,9.972e-05,2]
[405851371,1771361441045,-192.0,9.972e-05,2]
[405851372,1771361441056,-500.0,9.972e-05,2]
[405851373,1771361441066,-500.0,9.972e-05,2]
[405851374,1771361441075,-242.84628954,9.972e-05,2]
[405851375,1771361441086,-500.0,9.972e-05,2]
[405851376,1771361441097,-500.0,9.972e-05,2]
[405851377,1771361441107,-500.0,0.0001,2]
[405851378,1771361441117,-898.32890406,0.0001,2]
[405851379,1771361441127,-235.80877265,0.0001,2]
[405851380,1771361441138,-1213.35576391,0.0001,2]
[405851381,1771361441149,-151.0,0.0001,2]
[405851382,1771361441160,-151.0,0.0001,2]
[405851383,1771361441170,-151.0,0.0001,2]
[405851384,1771361441180,-151.0,0.0001,2]
[405851385,1771361441191,-151.0,0.0001,2]
[405851386,1771361441201,-151.0,0.0001,2]
[405851387,1771361441211,-151.0,0.0001,2]
[405851388,1771361441220,-151.0,0.0001,2]
[405851389,1771361441232,-151.0,0.0001,2]
[405851390,1771361441243,-151.0,0.0001,2]
[405851391,1771361441253,-151.0,0.0001,2]
[405851392,1771361441263,-151.0,0.0001,2]
[405851393,1771361441275,-151.0,0.0001,2]
[405851394,1771361441285,-151.0,0.0001,2]
[405851395,1771361441296,-151.0,0.0001,2]
[405851396,1771361441307,-151.0,0.0001,2]
[405851397,1771361441317,-151.0,0.0001,2]
[405851398,1771361441327,-151.0,0.0001,2]
[405851399,1771361441338,-151.0,0.0001,2]
[405851400,1771361441349,-151.0,0.0001,2]
[405851402,1771361441359,-151.0,0.0001,2]
[405851404,1771361441369,-151.0,0.0001,2]
[405851405,1771361441381,-151.0,0.0001,2]
[405851406,1771361441391,-151.0,0.0001,2]
[405851407,1771361441401,-151.0,0.0001,2]
[405851408,1771361441411,-151.0,0.0001,2]
[405851409,1771361441421,-151.0,0.0001,2]
[405851410,1771361441432,-680.18917296,0.0001,2]
[405851411,1771361441443,-680.18917296,0.0001,2]
[405851412,1771361441453,-680.18917296,0.0001,2]
[405851413,1771361441463,-337.0,0.0001,2]
[405851414,1771361441474,-337.0,0.0001,2]
[405851415,1771361441485,-337.85061866,0.0001,2]
[405851416,1771361441496,-1636.71758622,0.0001,2]
[405851417,1771361441506,-175.22048755,0.0001,2]
[405851418,1771361441520,-1636.71758622,0.0001,2]
[405851419,1771361441533,-500.0,0.00010026,2]
[405851420,1771361441545,-500.0,0.00010026,2]
[405851421,1771361441554,-500.0,0.00010026,2]
[405851422,1771361441565,-500.0,0.00010026,2]
[405851423,1771361441575,-500.0,0.00010026,2]
[405851424,1771361441586,-500.0,0.00010026,2]
[405851425,1771361441596,-200.24181775,0.00010026,2]
[405851426,1771361441605,-510.76125773,0.00010026,2]
[405851427,1771361441615,-250.53819001,0.00010026,2]
[405851428,1771361441625,-500.0,0.00010026,2]
[405851429,1771361441636,-500.0,0.00010026,2]
[405851430,1771361441646,-500.0,0.00010026,2]
[405851431,1771361441656,-500.0,0.00010026,2]
[405851432,1771361441669,-500.0,0.00010026,2]
[405851433,1771361441678,-500.0,0.00010026,2]
[405851434,1771361441688,-500.0,0.00010026,2]
[405851435,1771361441698,-500.0,0.00010026,2]
[405851436,1771361441707,-178.36591542,0.00010026,2]
[405851437,1771361441719,-500.0,0.00010026,2]
[405851438,1771361441729,-500.0,0.00010026,2]
[405851439,1771361441741,-500.0,0.00010026,2]
[405851440,1771361441752,-1600.0,0.00010048,2]
[405851441,1771361441762,-500.0,0.00010081,2]
[405851442,1771361441773,-329.95129651,0.00010081,2]
[405851443,1771361441783,-500.0,0.00010081,2]
[405851444,1771361441793,-500.0,0.00010081,2]
[405851445,1771361441804,-500.0,0.00010081,2]
[405851446,1771361441814,-500.0,0.00010081,2]
[405851447,1771361441824,-500.0,0.00010081,2]
[405851448,1771361441834,-500.0,0.00010081,2]
[405851449,1771361441844,-500.0,0.00010081,2]
[405851450,1771361441854,-500.0,0.00010081,2]
[405851451,1771361441865,-500.0,0.00010081,2]
[405851452,1771361441874,-500.0,0.00010081,2]
[405851453,1771361441884,-500.0,0.00010081,2]
[405851454,1771361441894,-500.0,0.00010081,2]
[405851455,1771361441904,-500.0,0.00010081,2]
[405851456,1771361441913,-500.0,0.00010081,2]
[405851457,1771361441923,-500.0,0.00010081,2]
[405851458,1771361441934,-500.0,0.00010136,2]
[405851459,1771361441944,-500.0,0.00010136,2]
[405851460,1771361441953,-500.0,0.00010136,2]
[405851461,1771361441963,-500.0,0.00010136,2]
[405851462,1771361441973,-500.0,0.00010136,2]
[405851463,1771361441983,-500.0,0.00010136,2]
[405851464,1771361441993,-500.0,0.00010136,2]
[405851465,1771361442003,-500.0,0.00010136,2]
[405851466,1771361442013,-500.0,0.00010136,2]
[405851467,1771361442023,-500.0,0.00010136,2]
[405851468,1771361442032,-500.0,0.00010136,2]
[405851469,1771361442042,-500.0,0.00010136,2]
[405851470,1771361442052,-500.33776257,0.00010136,2]
[405851471,1771361442061,-500.0,0.00010136,2]
[405851472,1771361442071,-500.0,0.00010136,2]
[405851473,1771361442082,-500.0,0.00010136,2]
[405851474,1771361442092,-500.0,0.00010137,2]
[405851475,1771361442101,-500.0,0.00010191,2]
[405851476,1771361442111,-500.0,0.00010191,2]
[405851477,1771361442121,-464.38268717,0.00010191,2]
[405851478,1771361442131,-475.49905426,0.00010191,2]
[405851479,1771361442140,-500.0,0.00010191,2]
[405851480,1771361442150,-500.0,0.00010191,2]
[405851481,1771361442161,-500.0,0.00010191,2]
[405851482,1771361442170,-621.12228144,0.00010191,2]
[405851483,1771361442181,-500.0,0.00010191,2]
[405851484,1771361442190,-500.0,0.00010191,2]
[405851485,1771361442200,-500.0,0.00010191,2]
[405851486,1771361442210,-500.0,0.00010191,2]
[405851487,1771361442220,-500.0,0.00010191,2]
[405851488,1771361442229,-500.0,0.00010191,2]
[405851489,1771361442238,-500.0,0.00010191,2]
[405851490,1771361442248,-500.0,0.00010246,2]
[405851491,1771361442257,-500.0,0.00010246,2]
[405851492,1771361442266,-500.0,0.00010246,2]
[405851493,1771361442276,-500.0,0.00010246,2]
[405851494,1771361442286,-500.0,0.00010246,2]
[405851495,1771361442295,-500.0,0.00010246,2]
[405851496,1771361442304,-500.0,0.00010246,2]
[405851497,1771361442314,-500.0,0.00010246,2]
[405851498,1771361442325,-500.0,0.00010246,2]
[405851499,1771361442337,-500.0,0.00010246,2]
[405851500,1771361442348,-500.0,0.00010246,2]
[405851501,1771361442358,-500.0,0.00010246,2]
[405851502,1771361442369,-500.0,0.000103,2]
[405851503,1771361442380,-205.81655615,0.000103,2]
[405851504,1771361442390,-500.0,0.000103,2]
[405851505,1771361442401,-500.0,0.000103,2]
[405851506,1771361442411,-500.0,0.000103,2]
[405851507,1771361442420,-500.0,0.000103,2]
[405851508,1771361442431,-500.0,0.000103,2]
[405851509,1771361442441,-500.0,0.000103,2]
[405851510,1771361442453,-500.0,0.000103,2]
[405851511,1771361442464,-153.2248447,0.000103,2]
[405851512,1771361442476,-500.0,0.000103,2]
[405851513,1771361442485,-500.0,0.000103,2]
[405851514,1771361442495,-500.0,0.00010355,2]
[405851515,1771361442504,-500.0,0.00010355,2]
[405851516,1771361442515,-500.0,0.00010355,2]
[405851517,1771361442524,-500.0,0.00010355,2]
[405851518,1771361442534,-500.0,0.00010355,2]
[405851519,1771361442544,-500.0,0.00010355,2]
[405851520,1771361442554,-500.0,0.00010355,2]
[405851521,1771361442564,-500.0,0.00010355,2]
[405851522,1771361442573,-500.0,0.00010355,2]
[405851523,1771361442582,-500.0,0.00010355,2]
[405851524,1771361442592,-500.0,0.0001041,2]
[405851525,1771361442601,-500.0,0.0001041,2]
[405851526,1771361442612,-500.0,0.0001041,2]
[405851527,1771361442621,-500.0,0.0001041,2]
[405851528,1771361442630,-500.0,0.0001041,2]
[405851529,1771361442641,-500.0,0.0001041,2]
[405851530,1771361442650,-500.0,0.0001041,2]
[405851531,1771361442660,-500.0,0.0001041,2]
[405851532,1771361442673,-500.0,0.0001041,2]
[405851533,1771361442682,-500.0,0.0001041,2]
[405851534,1771361442694,-500.0,0.00010411,2]
[405851535,1771361442705,-500.0,0.00010465,2]
[405851536,1771361442714,-500.0,0.00010465,2]
[405851537,1771361442724,-500.0,0.00010465,2]
[405851538,1771361442734,-500.0,0.00010465,2]
[405851539,1771361442744,-500.0,0.00010465,2]
[405851540,1771361442754,-500.0,0.00010465,2]
[405851541,1771361442763,-361.9355564,0.00010465,2]
[405851542,1771361442773,-500.0,0.00010465,2]
[405851543,1771361442783,-163.51122534,0.00010465,2]
[405851544,1771361442794,-512.26030593,0.00010465,2]
[405851545,1771361442803,-357.942275,0.00010502,2]
[405851546,1771361442813,-224.65460803,0.0001052,2]
[405851548,1771361442823,-500.0,0.0001052,2]
[405851550,1771361442833,-500.0,0.0001052,2]
[405851552,1771361442842,-500.0,0.0001052,2]
[405851553,1771361442852,-500.0,0.0001052,2]
[405851554,1771361442861,-500.0,0.0001052,2]
[405851555,1771361442871,-500.0,0.0001052,2]
[405851556,1771361442880,-442.49812506,0.00010574,2]
[405851557,1771361442890,-500.0,0.00010574,2]
[405851558,1771361442899,-500.0,0.00010574,2]
[405851559,1771361442910,-500.0,0.00010574,2]
[405851560,1771361442919,-498.26652801,0.00010574,2]
[405851561,1771361442928,-1613.0,0.00010628,2]
[405851562,1771361442938,-6453.0,0.00010628,2]
[405851563,1771361442948,-500.0,0.00010629,2]
[405851564,1771361442957,-500.0,0.00010629,2]
[405851565,1771361442967,-611.76249723,0.00010629,2]
[405851566,1771361442977,-481.0942881,0.00010684,2]
[405851568,1771361442986,-500.0,0.00010684,2]
[405851569,1771361442995,-500.0,0.00010685,2]
[405851570,1771361443005,-500.0,0.00010739,2]
[405851571,1771361443013,-2129.0,0.0001079,2]
[405851572,1771361443023,-514.37004621,0.00010794,2]
[405851573,1771361443031,-5019.02576735,0.000109,2]
[405851574,1771361443040,-5019.02576734,0.000109,2]
[405851575,1771361443049,-5019.02576734,0.000109,2]
[405851576,1771361443059,-500.0,0.00010959,2]
[405851577,1771361443067,-214297.0,0.00011,2]
[405851578,1771361443077,-1600.0,0.00011052,2]
[405851580,1771361443087,-151.0,0.00011096,2]
[405851581,1771361443096,-46546.29107829,0.00011099,2]
[405851584,1771361443106,-46546.29107822,0.00011099,2]
[405851585,1771361443115,-46546.29107822,0.00011099,2]
[405851586,1771361443124,-46546.29107822,0.00011099,2]
[405851587,1771361443133,-46546.29107822,0.00011099,2]
[405851588,1771361443142,-46546.29107822,0.00011099,2]
[405851589,1771361443150,-46546.29107822,0.00011099,2]
[405851590,1771361443160,-46546.29107822,0.00011099,2]
[405851591,1771361443170,-46546.29107822,0.00011099,2]
[405851592,1771361443180,-68837.47701454,0.00011099,2]
[405851593,1771361443189,-68837.47701454,0.00011099,2]
[405851594,1771361443199,-68837.47701454,0.00011099,2]
[405851595,1771361443208,-46546.29107822,0.00011133,2]
[405851596,1771361443217,-1650.0,0.00011154,7]
[405851597,1771361443227,-500.0,0.00011233,2]
[405851598,1771361443236,-68837.47701454,0.00011265,2]
[405851599,1771361443245,-5530.0,0.000114,3]
[405851600,1771361443255,-5019.02576734,0.00011443,2]
[405851601,1771361443264,-500.0,0.00011507,2]
[405851602,1771361443273,-4709.85,0.00011507,2]
[405851603,1771361443282,-2258.0,0.00011691,2]
[405851604,1771361443291,-9035.0,0.00011691,2]
[405851605,1771361443300,-155.92203,0.00011712,2]
[405851606,1771361443310,-500.0,0.00011781,2]
[405851607,1771361443319,-5530.0,0.000118,5]
[405851608,1771361443328,-1213.35576391,0.0001183,2]
[405851609,1771361443337,-3620.0,0.00011869,2]
[405851610,1771361443346,-150.0,0.00011924,2]
[405851611,1771361443356,-4739.43815662,0.00012,2]
[405851612,1771361443365,-68837.47701454,0.00012043,2]
[405851613,1771361443374,-500.0,0.00012055,2]
[405851614,1771361443383,-23006.18,0.00012055,2]
[405851615,1771361443392,-1600.0,0.00012057,2]
[405851616,1771361443401,-500.0,0.00012173,2]
[405851617,1771361443411,-500.0,0.00012173,2]
[405851618,1771361443420,-164.61380668,0.00012173,2]
[405851619,1771361443430,-500.0,0.00012173,2]
[405851620,1771361443441,-500.0,0.00012173,2]
[405851621,1771361443450,-500.0,0.00012173,2]
[405851622,1771361443460,-500.0,0.00012173,2]
[405851623,1771361443470,-500.0,0.00012173,2]
[405851624,1771361443479,-545.77855618,0.00012173,2]
[405851625,1771361443707,-500.0,0.00012173,2]
[405851626,1771361443718,-160.37289206,0.00012173,2]
[405851627,1771361443728,-500.0,0.00012173,2]
[405851628,1771361443739,-500.0,0.00012173,2]
[405851629,1771361443749,-163.58520611,0.00012173,2]
[405851630,1771361443759,-500.0,0.00012173,2]
[405851631,1771361443768,-500.0,0.00012173,2]
[405851632,1771361443778,-500.0,0.00012173,2]
[405851633,1771361443788,-500.0,0.00012173,2]
[405851634,1771361443797,-500.0,0.00012173,2]
[405851635,1771361443807,-500.0,0.00012173,2]
[405851636,1771361443816,-500.0,0.00012173,2]
[405851637,1771361443826,-500.0,0.00012173,2]
[405851638,1771361443836,-500.0,0.00012173,2]
[405851639,1771361443848,-500.62727143,0.00012173,2]
[405851640,1771361443857,-500.0,0.00012173,2]
[405851641,1771361443867,-500.0,0.00012173,2]
[405851642,1771361443876,-500.0,0.00012173,2]
[405851643,1771361443886,-500.0,0.00012173,2]
[405851644,1771361443895,-500.0,0.00012173,2]
[405851645,1771361443905,-500.0,0.00012173,2]
[405851646,1771361443915,-500.0,0.00012173,2]
[405851647,1771361443926,-500.0,0.00012173,2]
[405851648,1771361443936,-500.46642231,0.00012173,2]
[405851649,1771361443946,-218.33608313,0.00012173,2]
[405851650,1771361443957,-166.78412047,0.00012173,2]
[405851651,1771361443967,-500.0,0.00012173,2]
[405851652,1771361443977,-500.0,0.00012173,2]
[405851653,1771361443987,-500.0,0.00012173,2]
[405851654,1771361443996,-1009.2,0.00012173,2]
[405851655,1771361444006,-583.69347785,0.00012197,2]
[405851656,1771361444015,-355.76,0.00012216,2]
[405851657,1771361444025,-273.42872891,0.0001225,2]
[405851658,1771361444036,-3957.28702206,0.0001225,2]
[405851659,1771361444046,-17720.8538312,0.0001225,2]
[405851660,1771361444055,-215.37,0.00012274,2]
[405851661,1771361444065,-500.0,0.00012329,2]
[405851662,1771361444074,-1000.0,0.00012349,2]
[405851663,1771361444083,-1009.2,0.00012447,2]
[405851664,1771361444092,-600.0,0.00012451,2]
[405851665,1771361444102,-173.57638878,0.00012499,2]
[405851666,1771361444111,-160.0,0.00012499,2]
[405851667,1771361444120,-500.0,0.00012603,2]
[405851668,1771361444129,-1000.0,0.00012721,2]
[405851669,1771361444143,-1000.0,0.00012721,2]
[405851670,1771361444152,-571.65229745,0.00012721,2]
[405851671,1771361444161,-1002.81524174,0.00012721,2]
[405851672,1771361444171,-228.57891647,0.00012721,2]
[405851673,1771361444180,-1013.94571317,0.00012721,2]
[405851674,1771361444189,-500.0,0.00012721,2]
[405851675,1771361444200,-509.22256369,0.00012721,2]
[405851676,1771361444209,-1000.0,0.00012721,2]
[405851677,1771361444219,-1071.24633497,0.00012721,2]
[405851678,1771361444228,-1000.0,0.00012721,2]
[405851679,1771361444239,-544.40507509,0.00012721,2]
[405851680,1771361444248,-1000.0,0.00012721,2]
[405851681,1771361444258,-1000.0,0.00012721,2]
[405851682,1771361444268,-1000.0,0.00012721,2]
[405851683,1771361444278,-1000.0,0.00012721,2]
[405851684,1771361444288,-1000.0,0.00012721,2]
[405851685,1771361444298,-1000.0,0.00012721,2]
[405851686,1771361444307,-1000.0,0.00012721,2]
[405851687,1771361444316,-1000.0,0.00012721,2]
[405851688,1771361444328,-1000.0,0.00012721,2]
[405851689,1771361444338,-1000.0,0.00012721,2]
[405851690,1771361444347,-1000.0,0.00012721,2]
[405851691,1771361444357,-501.82748142,0.00012721,2]
[405851692,1771361444367,-1000.0,0.00012721,2]
[405851693,1771361444376,-615.3930462,0.00012721,2]